[Event "NJSK 2026 Meisjes C"]
[Site "Helmond, Netherlands"]
[Date "2026.04.26"]
[Round "2.2"]
[White "Oruc, Siraz"]
[Black "Ganeshram, Niranjana"]
[Result "1-0"]
[TimeControl "90min/40moves + 30min + 30sec/move"]
[WhiteTitle "-"]
[BlackTitle "-"]
[WhiteFideId "40125874"]
[BlackFideId "40100480"]
[WhiteElo "1706"]
[BlackElo "1753"]

1. e4 {[%clk 01:30:58]} {[%emt 00:00:02]} e5 {[%clk 01:30:56]} {[%emt
00:00:03]} 2. Nf3 {[%clk 01:31:20]} {[%emt 00:00:09]} Nc6 {[%clk 01:31:15]}
{[%emt 00:00:11]} 3. d4 {[%clk 01:31:24]} {[%emt 00:00:25]} exd4 {[%clk
01:31:42]} {[%emt 00:00:04]} 4. Nxd4 {[%clk 01:31:44]} {[%emt 00:00:10]} Nf6
{[%clk 01:32:06]} {[%emt 00:00:07]} 5. Nc3 {[%clk 01:31:38]} {[%emt 00:00:36]}
Bb4 {[%clk 01:32:30]} {[%emt 00:00:06]} 6. Nxc6 {[%clk 01:31:40]} {[%emt
00:00:26]} bxc6 {[%clk 01:32:50]} {[%emt 00:00:11]} 7. Bd3 {[%clk 01:31:43]}
{[%emt 00:00:27]} d6 {[%clk 01:33:12]} {[%emt 00:00:08]} 8. Bg5 {[%clk
01:24:03]} {[%emt 00:08:10]} h6 {[%clk 01:33:27]} {[%emt 00:00:16]} 9. Bh4
{[%clk 01:24:05]} {[%emt 00:00:27]} g5 {[%clk 01:33:47]} {[%emt 00:00:09]} 10.
Bg3 {[%clk 01:24:01]} {[%emt 00:00:34]} Qe7 {[%clk 01:33:55]} {[%emt 00:00:22]}
11. Qe2 {[%clk 01:21:24]} {[%emt 00:03:08]} Ng4 {[%clk 01:29:52]} {[%emt
00:04:33]} 12. h3 {[%clk 01:13:05]} {[%emt 00:08:48]} Ne5 {[%clk 01:29:51]}
{[%emt 00:00:31]} 13. Ba6 {[%clk 01:07:52]} {[%emt 00:05:43]} Bxa6 {[%clk
01:12:38]} {[%emt 00:17:44]} 14. Qxa6 {[%clk 01:07:03]} {[%emt 00:01:19]} Bxc3+
{[%clk 01:08:42]} {[%emt 00:04:26]} 15. bxc3 {[%clk 01:07:14]} {[%emt
00:00:19]} Kd7 {[%clk 01:08:03]} {[%emt 00:01:09]} 16. Rd1 {[%clk 00:58:14]}
{[%emt 00:09:29]} f5 {[%clk 01:04:23]} {[%emt 00:04:09]} 17. Qa5 {[%clk
00:49:54]} {[%emt 00:08:51]} f4 {[%clk 01:03:16]} {[%emt 00:01:37]} 18. Bh2
{[%clk 00:49:51]} {[%emt 00:00:33]} Rhb8 {[%clk 01:02:19]} {[%emt 00:01:27]} 19.
Qa4 {[%clk 00:42:32]} {[%emt 00:07:50]} Rb7 {[%clk 00:56:32]} {[%emt 00:06:18]}
20. h4 {[%clk 00:35:01]} {[%emt 00:08:00]} Rab8 {[%clk 00:55:13]} {[%emt
00:01:48]} 21. O-O {[%clk 00:31:17]} {[%emt 00:04:14]} Ng4 {[%clk 00:53:12]}
{[%emt 00:02:31]} 22. g3 {[%clk 00:26:01]} {[%emt 00:05:46]} Nxh2 {[%clk
00:52:39]} {[%emt 00:01:04]} 23. Kxh2 {[%clk 00:26:14]} {[%emt 00:00:16]} gxh4
{[%clk 00:51:35]} {[%emt 00:01:35]} 24. gxf4 {[%clk 00:23:58]} {[%emt
00:02:46]} Rg8 {[%clk 00:42:41]} {[%emt 00:09:23]} 25. Rg1 {[%clk 00:22:40]}
{[%emt 00:01:48]} Rbb8 {[%clk 00:41:49]} {[%emt 00:01:23]} 26. Qd4 {[%clk
00:20:15]} {[%emt 00:02:55]} Qf7 {[%clk 00:36:11]} {[%emt 00:06:07]} 27. f5
{[%clk 00:17:51]} {[%emt 00:02:54]} Rg5 {[%clk 00:25:40]} {[%emt 00:11:01]} 28.
Rxg5 {[%clk 00:10:56]} {[%emt 00:07:25]} hxg5 {[%clk 00:25:52]} {[%emt
00:00:18]} 29. Rg1 {[%clk 00:11:13]} {[%emt 00:00:13]} Rg8 {[%clk 00:24:28]}
{[%emt 00:01:54]} 30. Qe3 {[%clk 00:08:53]} {[%emt 00:02:51]} g4 {[%clk
00:23:50]} {[%emt 00:01:08]} 31. Qf4 {[%clk 00:07:45]} {[%emt 00:01:37]} Qh5
{[%clk 00:20:04]} {[%emt 00:04:16]} 32. f3 {[%clk 00:05:33]} {[%emt 00:02:43]}
g3+ {[%clk 00:19:24]} {[%emt 00:01:10]} 33. Kh3 {[%clk 00:04:30]} {[%emt
00:01:33]} Qe8 {[%clk 00:18:58]} {[%emt 00:00:55]} 34. f6 {[%clk 00:03:32]}
{[%emt 00:01:28]} Qe6+ {[%clk 00:16:18]} {[%emt 00:03:10]} 35. Kxh4 {[%clk
00:01:42]} {[%emt 00:02:21]} Qf7 {[%clk 00:08:45]} {[%emt 00:08:02]} 36. Qf5+
{[%clk 00:00:51]} {[%emt 00:01:21]} Qe6 {[%clk 00:05:14]} {[%emt 00:04:01]} 37.
Qxe6+ {[%clk 00:00:47]} Kxe6 {[%clk 00:05:33]} {[%emt 00:00:46]} 38. Rxg3
{[%clk 00:01:07]} {[%emt 00:00:10]} Rxg3 {[%clk 00:05:32]} {[%emt 00:00:31]} 39.
Kxg3 {[%clk 00:01:31]} {[%emt 00:00:06]} Kxf6 {[%emt 00:00:07]} 40. Kf4 {[%clk
00:01:43]} {[%emt 00:00:15]} a6 {[%clk 00:04:41]} {[%emt 00:01:46]} 41. c4
{[%clk 00:00:43]} {[%emt 00:01:30]} a5 {[%clk 00:04:16]} {[%emt 00:00:56]} 42.
a4 {[%clk 00:00:46]} {[%emt 00:00:27]} c5 {[%clk 00:04:20]} {[%emt 00:00:25]}
43. c3 {[%clk 00:00:44]} {[%emt 00:00:33]} c6 {[%clk 00:04:02]} {[%emt
00:00:48]} 44. Kg4 {[%clk 00:00:33]} {[%emt 00:00:41]} Kg6 {[%clk 00:04:03]}
{[%emt 00:00:29]} 45. f4 {[%clk 00:00:40]} {[%emt 00:00:22]} Kf6 {[%clk
00:04:29]} {[%emt 00:00:04]} 46. Kh5 {[%clk 00:00:56]} {[%emt 00:00:13]} Kf7
{[%clk 00:04:24]} {[%emt 00:00:36]} 47. Kg5 {[%clk 00:00:44]} {[%emt 00:00:42]}
Kg7 {[%clk 00:04:48]} {[%emt 00:00:07]} 48. Kf5 {[%clk 00:00:48]} {[%emt
00:00:26]} Kf7 {[%clk 00:05:14]} {[%emt 00:00:03]} 49. e5 {[%clk 00:00:46]}
{[%emt 00:00:32]} d5 {[%clk 00:04:13]} {[%emt 00:01:32]} 50. cxd5 {[%clk
00:00:34]} {[%emt 00:00:41]} cxd5 {[%clk 00:04:37]} {[%emt 00:00:06]} 51. e6+
{[%clk 00:00:37]} {[%emt 00:00:27]} Ke7 {[%clk 00:04:47]} {[%emt 00:00:20]} 52.
Ke5 {[%clk 00:00:37]} {[%emt 00:00:30]} d4 {[%clk 00:05:04]} {[%emt 00:00:13]}
53. cxd4 {[%clk 00:00:40]} {[%emt 00:00:28]} cxd4 {[%clk 00:05:30]} {[%emt
00:00:03]} 54. Kxd4 {[%clk 00:00:57]} {[%emt 00:00:14]} Kxe6 {[%clk 00:05:51]}
{[%emt 00:00:09]} 55. Kc5 {[%clk 00:00:49]} {[%emt 00:00:38]} Kf5 {[%clk
00:06:12]} {[%emt 00:00:09]} 56. Kb5 {[%clk 00:01:04]} {[%emt 00:00:14]} Kxf4
{[%clk 00:06:38]} {[%emt 00:00:04]} 57. Kxa5 {[%clk 00:01:25]} {[%emt
00:00:09]} Ke5 {[%clk 00:07:08]} 58. Kb6 {[%clk 00:01:40]} {[%emt 00:00:15]}
Kd6 {[%clk 00:07:34]} {[%emt 00:00:03]} 59. a5 {[%clk 00:01:13]} {[%emt
00:00:57]} Kd7 {[%clk 00:07:59]} {[%emt 00:00:06]} 60. Kb7 {[%clk 00:01:37]}
{[%emt 00:00:05]} Kd8 {[%clk 00:08:26]} {[%emt 00:00:03]} 61. a6 {[%clk
00:01:56]} {[%emt 00:00:12]} Kd7 {[%clk 00:08:52]} {[%emt 00:00:04]} 62. a7
{[%clk 00:02:08]} {[%emt 00:00:17]} Kd8 {[%clk 00:09:15]} {[%emt 00:00:07]} 63.
a8=Q+ {[%clk 00:02:28]} {[%emt 00:00:11]} Kd7 {[%clk 00:09:40]} {[%emt
00:00:05]} 64. Qa6 {[%clk 00:02:45]} {[%emt 00:00:13]} Ke7 {[%emt 00:00:27]} 65.
Qd3 {[%clk 00:02:50]} {[%emt 00:00:03]} Ke6 {[%clk 00:10:27]} {[%emt 00:00:07]}
66. Kc6 {[%clk 00:03:11]} {[%emt 00:00:09]} Ke7 {[%clk 00:10:49]} {[%emt
00:00:09]} 67. Qd7+ {[%clk 00:03:28]} {[%emt 00:00:13]} Kf6 {[%clk 00:11:09]}
{[%emt 00:00:10]} 68. Qe8 {[%clk 00:03:47]} {[%emt 00:00:11]} Kf5 {[%clk
00:11:35]} {[%emt 00:00:03]} 69. Kd5 {[%clk 00:04:09]} {[%emt 00:00:07]} Kg4
{[%clk 00:12:00]} {[%emt 00:00:06]} 70. Qf7 {[%clk 00:04:23]} {[%emt 00:00:17]}
Kg3 {[%clk 00:12:14]} {[%emt 00:00:16]} 71. Ke4 {[%clk 00:04:46]} {[%emt
00:00:07]} Kg2 {[%clk 00:12:24]} {[%emt 00:00:20]} 72. Qf3+ {[%clk 00:04:53]}
{[%emt 00:00:22]} Kg1 {[%clk 00:12:47]} {[%emt 00:00:07]} 73. Qe2 {[%clk
00:05:08]} {[%emt 00:00:16]} Kh1 {[%clk 00:13:07]} {[%emt 00:00:10]} 74. Kf3
{[%clk 00:05:32]} {[%emt 00:00:05]} Kg1 {[%clk 00:13:26]} {[%emt 00:00:11]} 75.
Qg2# {[%clk 00:05:58]} {[%emt 00:00:05]} 1-0

[Event "NJSK 2026 Meisjes C"]
[Site "Helmond, Netherlands"]
[Date "2026.04.26"]
[Round "2.3"]
[White "Luong, Thao"]
[Black "Panzar, Emilia-Andreea"]
[Result "1-0"]
[TimeControl "90min/40moves + 30min + 30sec/move"]
[WhiteTitle "-"]
[BlackTitle "-"]
[WhiteFideId "1091980"]
[BlackFideId "42210852"]
[WhiteElo "1855"]
[BlackElo "1585"]

1. e4 {[%clk 01:30:57]} {[%emt 00:00:03]} c6 {[%clk 01:30:45]} {[%emt
00:00:14]} 2. d4 {[%clk 01:31:22]} {[%emt 00:00:06]} d5 {[%clk 01:30:56]}
{[%emt 00:00:19]} 3. exd5 {[%clk 01:31:41]} {[%emt 00:00:11]} cxd5 {[%clk
01:31:14]} {[%emt 00:00:11]} 4. Bd3 {[%clk 01:32:04]} {[%emt 00:00:07]} Nf6
{[%clk 01:31:18]} {[%emt 00:00:27]} 5. h3 {[%clk 01:32:04]} {[%emt 00:00:29]}
Nc6 {[%clk 01:30:24]} {[%emt 00:01:24]} 6. c3 {[%clk 01:32:16]} {[%emt
00:00:18]} a6 {[%clk 01:30:02]} {[%emt 00:00:52]} 7. Nf3 {[%clk 01:32:16]}
{[%emt 00:00:28]} e6 {[%clk 01:29:17]} {[%emt 00:01:17]} 8. Bf4 {[%clk
01:32:33]} {[%emt 00:00:11]} Bd6 {[%clk 01:29:02]} {[%emt 00:00:45]} 9. Ne5
{[%clk 01:32:19]} {[%emt 00:00:46]} Qc7 {[%clk 01:27:32]} {[%emt 00:01:59]} 10.
Qe2 {[%clk 01:23:48]} {[%emt 00:09:01]} h6 {[%clk 01:18:30]} {[%emt 00:09:31]}
11. Nd2 {[%clk 01:22:28]} {[%emt 00:01:50]} b5 {[%clk 01:12:04]} {[%emt
00:06:57]} 12. O-O {[%clk 01:20:57]} {[%emt 00:02:00]} b4 {[%clk 01:08:37]}
{[%emt 00:03:58]} 13. Bg3 {[%clk 01:14:50]} {[%emt 00:06:36]} bxc3 {[%clk
00:58:45]} {[%emt 00:10:23]} 14. bxc3 {[%clk 01:15:12]} {[%emt 00:00:07]} Bxe5
{[%clk 00:56:28]} {[%emt 00:02:47]} 15. dxe5 {[%clk 01:12:22]} {[%emt
00:03:21]} Nd7 {[%clk 00:56:16]} {[%emt 00:00:42]} 16. Qg4 {[%clk 01:08:04]}
{[%emt 00:04:47]} g6 {[%clk 00:48:10]} {[%emt 00:08:36]} 17. Bxg6 {[%clk
00:47:51]} {[%emt 00:20:44]} Ndxe5 {[%clk 00:33:02]} {[%emt 00:15:37]} 18. Bxe5
{[%clk 00:47:48]} {[%emt 00:00:33]} Nxe5 {[%clk 00:33:04]} {[%emt 00:00:27]} 19.
Qf4 {[%clk 00:46:31]} {[%emt 00:01:48]} fxg6 {[%clk 00:32:54]} {[%emt
00:00:40]} 20. Rfe1 {[%clk 00:46:30]} {[%emt 00:00:30]} Qxc3 {[%clk 00:32:25]}
{[%emt 00:01:00]} 21. Rac1 {[%clk 00:43:36]} {[%emt 00:03:23]} Qb2 {[%clk
00:24:49]} {[%emt 00:08:07]} 22. Rb1 {[%clk 00:41:20]} {[%emt 00:02:46]} Qxa2
{[%clk 00:20:47]} {[%emt 00:04:32]} 23. Qxe5 {[%clk 00:41:36]} {[%emt
00:00:14]} Rf8 {[%clk 00:20:43]} {[%emt 00:00:35]} 24. Qd6 {[%clk 00:33:49]}
{[%emt 00:08:16]} Kf7 {[%clk 00:16:42]} {[%emt 00:04:32]} 25. Nf3 {[%clk
00:17:42]} {[%emt 00:16:36]} Ra7 {[%clk 00:15:33]} {[%emt 00:01:40]} 26. Rbc1
{[%clk 00:15:15]} {[%emt 00:02:57]} Qa4 {[%clk 00:14:45]} {[%emt 00:01:15]} 27.
Rxc8 {[%clk 00:14:14]} {[%emt 00:01:34]} Rxc8 {[%clk 00:14:13]} {[%emt
00:01:01]} 28. Qxe6+ {[%clk 00:14:38]} {[%emt 00:00:06]} Kg7 {[%clk 00:13:45]}
{[%emt 00:00:58]} 29. Qxc8 {[%clk 00:14:48]} {[%emt 00:00:20]} Qd7 {[%clk
00:14:00]} {[%emt 00:00:15]} 30. Qc3+ {[%clk 00:14:23]} {[%emt 00:00:55]} Kh7
{[%clk 00:13:55]} {[%emt 00:00:35]} 31. Ne5 {[%clk 00:13:49]} {[%emt 00:01:03]}
Qd6 {[%clk 00:13:20]} {[%emt 00:01:07]} 32. Ng4 {[%clk 00:10:48]} {[%emt
00:03:31]} Rf7 {[%clk 00:12:16]} {[%emt 00:01:33]} 33. Re8 {[%clk 00:10:11]}
{[%emt 00:01:08]} Rf8 {[%clk 00:11:58]} {[%emt 00:00:48]} 34. Rxf8 {[%clk
00:09:51]} {[%emt 00:00:49]} Qxf8 {[%clk 00:12:20]} {[%emt 00:00:08]} 35. Nf6+
{[%clk 00:09:15]} {[%emt 00:01:06]} Kh8 {[%clk 00:12:41]} {[%emt 00:00:09]} 36.
Nxd5+ {[%clk 00:09:07]} {[%emt 00:00:38]} Qg7 {[%clk 00:12:36]} {[%emt
00:00:35]} 37. Qxg7+ {[%clk 00:08:33]} {[%emt 00:01:03]} Kxg7 {[%clk 00:13:01]}
{[%emt 00:00:07]} 38. Kh2 {[%clk 00:08:31]} {[%emt 00:00:32]} a5 {[%clk
00:13:05]} {[%emt 00:00:26]} 39. Kg3 {[%clk 00:08:04]} {[%emt 00:00:57]} a4
{[%clk 00:13:08]} {[%emt 00:00:27]} 40. Kf4 {[%clk 00:08:16]} {[%emt 00:00:17]}
a3 {[%clk 00:13:20]} {[%emt 00:00:19]} 41. Nc3 {[%clk 00:08:17]} {[%emt
00:00:28]} Kf6 {[%clk 00:13:34]} {[%emt 00:00:16]} 42. g4 {[%clk 00:08:03]}
{[%emt 00:00:44]} Ke6 {[%clk 00:13:34]} {[%emt 00:00:30]} 43. h4 {[%clk
00:08:05]} {[%emt 00:00:28]} Kf6 {[%clk 00:13:42]} {[%emt 00:00:23]} 44. g5+
{[%clk 00:07:54]} {[%emt 00:00:41]} Kg7 {[%clk 00:13:31]} {[%emt 00:00:41]} 45.
Ke5 {[%clk 00:07:34]} {[%emt 00:00:50]} hxg5 {[%clk 00:13:35]} {[%emt
00:00:26]} 46. hxg5 {[%clk 00:07:58]} {[%emt 00:00:05]} Kf7 {[%clk 00:13:55]}
{[%emt 00:00:09]} 47. f4 {[%clk 00:08:19]} {[%emt 00:00:10]} Ke7 {[%clk
00:14:00]} {[%emt 00:00:25]} 48. f5 {[%clk 00:08:42]} {[%emt 00:00:07]} Kf7
{[%clk 00:13:57]} {[%emt 00:00:33]} 49. fxg6+ {[%clk 00:08:50]} {[%emt
00:00:22]} Kxg6 {[%clk 00:14:18]} {[%emt 00:00:09]} 50. Kf4 {[%clk 00:09:16]}
{[%emt 00:00:05]} Kg7 {[%clk 00:14:22]} {[%emt 00:00:25]} 51. Kf5 {[%clk
00:09:38]} {[%emt 00:00:08]} Kf7 {[%clk 00:14:30]} {[%emt 00:00:22]} 52. g6+
{[%clk 00:10:01]} {[%emt 00:00:06]} Kg7 {[%clk 00:14:21]} {[%emt 00:00:40]} 53.
Kg5 {[%clk 00:10:25]} {[%emt 00:00:05]} Kg8 {[%clk 00:14:35]} {[%emt 00:00:17]}
54. Kf6 {[%clk 00:10:40]} {[%emt 00:00:15]} Kf8 {[%clk 00:14:32]} {[%emt
00:00:33]} 55. g7+ {[%clk 00:11:03]} {[%emt 00:00:07]} Kg8 {[%clk 00:14:49]}
{[%emt 00:00:13]} 56. Na2 {[%clk 00:11:27]} {[%emt 00:00:07]} Kh7 {[%clk
00:14:48]} {[%emt 00:00:30]} 57. Kf7 {[%clk 00:11:51]} {[%emt 00:00:06]} Kh6
{[%clk 00:15:09]} {[%emt 00:00:09]} 58. g8=Q {[%clk 00:12:13]} {[%emt
00:00:08]} Kh5 {[%clk 00:15:26]} {[%emt 00:00:14]} 59. Kf6 {[%clk 00:12:37]}
{[%emt 00:00:05]} Kh4 {[%clk 00:15:31]} {[%emt 00:00:26]} 60. Kf5 {[%clk
00:13:00]} {[%emt 00:00:06]} Kh3 {[%clk 00:15:46]} {[%emt 00:00:15]} 61. Kf4
{[%clk 00:13:22]} {[%emt 00:00:08]} Kh2 {[%clk 00:16:07]} {[%emt 00:00:09]} 62.
Kf3 {[%clk 00:13:48]} {[%emt 00:00:04]} Kh1 {[%clk 00:16:23]} {[%emt 00:00:15]}
63. Qg2# {[%clk 00:13:33]} {[%emt 00:00:13]} 1-0

[Event "NJSK 2026 Meisjes C"]
[Site "Helmond, Netherlands"]
[Date "2026.04.26"]
[Round "2.5"]
[White "Barbier, Sarah"]
[Black "Gnanasekaran, Keerthi"]
[Result "1/2-1/2"]
[TimeControl "90min/40moves + 30min + 30sec/move"]
[WhiteTitle "-"]
[BlackTitle "-"]
[WhiteFideId "1095420"]
[BlackFideId "40110508"]
[WhiteElo "1487"]
[BlackElo "1647"]

1. e4 {[%clk 01:30:58]} {[%emt 00:00:04]} e5 {[%clk 01:30:58]} 2. Nf3 {[%clk
01:31:16]} {[%emt 00:00:12]} Nc6 {[%clk 01:31:25]} {[%emt 00:00:03]} 3. d4
{[%clk 01:31:13]} {[%emt 00:00:33]} exd4 {[%clk 01:31:48]} {[%emt 00:00:06]} 4.
Nxd4 {[%clk 01:31:38]} {[%emt 00:00:06]} Qf6 {[%clk 01:32:10]} {[%emt
00:00:07]} 5. Nxc6 {[%clk 01:31:12]} {[%emt 00:00:56]} Qxc6 {[%clk 01:32:25]}
{[%emt 00:00:15]} 6. Nc3 {[%clk 01:31:26]} {[%emt 00:00:18]} Bb4 {[%clk
01:32:38]} {[%emt 00:00:14]} 7. Bd2 {[%clk 01:31:15]} {[%emt 00:00:43]} Bxc3
{[%clk 01:32:37]} {[%emt 00:00:30]} 8. Bxc3 {[%clk 01:31:35]} {[%emt 00:00:12]}
Qxe4+ {[%clk 01:32:19]} {[%emt 00:00:46]} 9. Qe2 {[%clk 01:31:56]} {[%emt
00:00:10]} Qxe2+ {[%clk 01:32:38]} {[%emt 00:00:10]} 10. Bxe2 {[%clk 01:32:13]}
{[%emt 00:00:14]} Nf6 {[%clk 01:30:26]} {[%emt 00:02:42]} 11. O-O-O {[%clk
01:31:36]} {[%emt 00:01:08]} d6 {[%clk 01:25:46]} {[%emt 00:05:08]} 12. Rde1
{[%clk 01:31:20]} {[%emt 00:00:46]} Be6 {[%clk 01:25:24]} {[%emt 00:00:51]} 13.
Bc4 {[%clk 01:29:31]} {[%emt 00:02:21]} Kd7 {[%clk 01:25:22]} {[%emt 00:00:31]}
14. Bxe6+ {[%clk 01:28:46]} {[%emt 00:01:14]} fxe6 {[%clk 01:25:47]} {[%emt
00:00:06]} 15. Re3 {[%clk 01:28:29]} {[%emt 00:00:48]} e5 {[%clk 01:24:35]}
{[%emt 00:01:41]} 16. h3 {[%clk 01:28:15]} {[%emt 00:00:45]} Rae8 {[%clk
01:23:15]} {[%emt 00:01:48]} 17. Rd1 {[%clk 01:23:50]} {[%emt 00:04:57]} Kc8
{[%clk 01:22:56]} {[%emt 00:00:49]} 18. Bb4 {[%clk 01:23:26]} {[%emt 00:00:53]}
Rhf8 {[%clk 01:21:34]} {[%emt 00:01:51]} 19. f3 {[%clk 01:21:05]} {[%emt
00:02:53]} e4 {[%clk 01:18:57]} {[%emt 00:03:06]} 20. Rc3 {[%clk 01:18:44]}
{[%emt 00:02:53]} Kb8 {[%clk 01:17:52]} {[%emt 00:01:34]} 21. Ba3 {[%clk
01:11:26]} {[%emt 00:07:48]} exf3 {[%clk 01:15:21]} {[%emt 00:03:00]} 22. Rxf3
{[%clk 01:11:04]} {[%emt 00:00:53]} Nd7 {[%clk 01:01:10]} {[%emt 00:14:38]} 23.
Rg3 {[%clk 01:08:49]} {[%emt 00:02:45]} Rf7 {[%clk 00:54:41]} {[%emt 00:06:59]}
24. b3 {[%clk 01:06:39]} {[%emt 00:02:44]} Rfe7 {[%clk 00:51:25]} {[%emt
00:03:43]} 25. Bb4 {[%clk 01:05:23]} {[%emt 00:01:48]} g6 {[%clk 00:50:33]}
{[%emt 00:01:20]} 26. Rf3 {[%clk 01:03:31]} {[%emt 00:02:24]} Ne5 {[%clk
00:49:14]} {[%emt 00:01:48]} 27. Rf4 {[%clk 00:59:01]} {[%emt 00:05:01]} Rf7
{[%clk 00:45:49]} {[%emt 00:03:53]} 28. Re4 {[%clk 00:58:26]} {[%emt 00:01:05]}
c5 {[%clk 00:38:15]} {[%emt 00:08:05]} 29. Bc3 {[%clk 00:57:02]} {[%emt
00:01:54]} Kc7 {[%clk 00:37:12]} {[%emt 00:01:32]} 30. Bxe5 {[%clk 00:55:23]}
{[%emt 00:02:10]} Rxe5 {[%clk 00:34:22]} {[%emt 00:03:20]} 31. Rxe5 {[%clk
00:55:47]} {[%emt 00:00:07]} dxe5 {[%clk 00:34:33]} {[%emt 00:00:18]} 32. Rd5
{[%clk 00:56:12]} {[%emt 00:00:06]} Kc6 {[%clk 00:33:40]} {[%emt 00:01:22]} 33.
Rxe5 {[%clk 00:56:33]} {[%emt 00:00:10]} Kd6 {[%clk 00:28:31]} {[%emt
00:05:39]} 34. Re3 {[%clk 00:54:31]} {[%emt 00:02:30]} Rf2 {[%clk 00:27:18]}
{[%emt 00:01:43]} 35. g4 {[%clk 00:53:51]} {[%emt 00:01:11]} Rf6 {[%clk
00:25:04]} {[%emt 00:02:42]} 36. Kd2 {[%clk 00:52:15]} {[%emt 00:02:08]} Re6
{[%clk 00:23:28]} {[%emt 00:02:05]} 37. Rd3+ {[%clk 00:50:57]} {[%emt
00:01:50]} Kc7 {[%clk 00:23:39]} {[%emt 00:00:17]} 38. Rc3 {[%clk 00:50:15]}
{[%emt 00:01:14]} b6 {[%clk 00:23:22]} {[%emt 00:00:46]} 39. Rf3 {[%clk
00:50:02]} {[%emt 00:00:43]} Kd7 {[%clk 00:22:13]} {[%emt 00:01:37]} 40. Kc3
{[%clk 00:48:47]} {[%emt 00:01:48]} b5 {[%clk 00:21:40]} {[%emt 00:01:02]} 41.
Rf7+ {[%clk 00:48:13]} {[%emt 00:01:04]} Re7 {[%clk 00:21:49]} {[%emt
00:00:20]} 42. Rf8 {[%clk 00:47:53]} {[%emt 00:00:51]} Re3+ {[%clk 00:17:04]}
{[%emt 00:05:15]} 43. Kb2 {[%clk 00:48:17]} {[%emt 00:00:07]} Rxh3 {[%clk
00:16:48]} {[%emt 00:00:45]} 44. Rf7+ {[%clk 00:48:38]} {[%emt 00:00:10]} Kd6
{[%clk 00:16:29]} {[%emt 00:00:47]} 45. Rxa7 {[%clk 00:48:52]} {[%emt
00:00:18]} Kd5 {[%clk 00:15:46]} {[%emt 00:01:12]} 46. a4 {[%clk 00:48:23]}
{[%emt 00:00:59]} b4 {[%clk 00:14:30]} {[%emt 00:01:44]} 47. Rc7 {[%clk
00:48:07]} {[%emt 00:00:48]} Rh4 {[%clk 00:13:38]} {[%emt 00:01:23]} 48. a5
{[%clk 00:47:41]} {[%emt 00:00:56]} Rxg4 {[%clk 00:12:48]} {[%emt 00:01:17]} 49.
a6 {[%clk 00:45:55]} {[%emt 00:02:19]} Re4 {[%clk 00:12:18]} {[%emt 00:00:57]}
50. Rxh7 {[%clk 00:39:39]} {[%emt 00:06:49]} Re6 {[%clk 00:12:03]} {[%emt
00:00:42]} 51. a7 {[%clk 00:39:53]} {[%emt 00:00:20]} Ra6 {[%clk 00:12:20]}
{[%emt 00:00:12]} 52. Rg7 {[%clk 00:38:51]} {[%emt 00:01:32]} Ke5 {[%clk
00:12:18]} {[%emt 00:00:30]} 53. Rxg6 {[%clk 00:38:16]} {[%emt 00:01:06]} Rxa7
{[%clk 00:12:26]} {[%emt 00:00:22]} 54. Rg5+ {[%clk 00:38:32]} {[%emt
00:00:14]} Kd4 {[%clk 00:11:58]} {[%emt 00:00:57]} 55. Rg4+ {[%clk 00:38:55]}
{[%emt 00:00:08]} Ke5 {[%clk 00:11:20]} {[%emt 00:01:05]} 56. Rg5+ {[%clk
00:39:22]} {[%emt 00:00:07]} Kd4 {[%clk 00:11:35]} {[%emt 00:00:13]} 1/2-1/2